No of Transactions,Dept_Family,Entity_Name,Cert Date,Supplier Name,Reference,Gross Amt,Group/Department,Type of Expenditure - Subjective Codes
1,DCMS,Historic England,05/03/2020,Alun Griffiths (Contractors) Ltd,0040128774,"62,656.20",Shrewsbury Flax Mill Maltings-Shrewsbury Flax Mill Maltings,Works for Heritage Buildings
2,DCMS,Historic England,20/03/2020,Alun Griffiths (Contractors) Ltd,0040129292,"38,833.10",Shrewsbury Flax Mill Maltings-Shrewsbury Flax Mill Maltings,Works for Heritage Buildings
3,DCMS,Historic England,19/03/2020,Amarelle Ltd,0040129046,"77,823.07",Corporate Services-Corporate,WIP Refurbishment Works
4,DCMS,Historic England,27/03/2020,Amarelle Ltd,0040129438,"72,234.84",Corporate Services-Corporate,WIP Refurbishment Works
5,DCMS,Historic England,31/03/2020,Amarelle Ltd,0040129645,"78,587.02",Corporate Services-Corporate,WIP Refurbishment Works
6,DCMS,Historic England,18/03/2020,Birmingham City Council General Fund,0082005588,"97,650.00",Regions Group-Midlands - RD,Grants Historic Buildings
7,DCMS,Historic England,09/03/2020,Birmingham City Council,0082005547,"89,208.00",Regions Group-Midlands - RD,Grants Historic Buildings
8,DCMS,Historic England,20/03/2020,Bramble Hub Ltd,0040129251,"36,480.00",Corporate Services-IMT,Hosting
9,DCMS,Historic England,27/03/2020,C G Building and Restoration Ltd,0040129463,"6,398.29",Corporate Services-Office Estate,Responsive Repairs M & E
10,DCMS,Historic England,27/03/2020,C G Building and Restoration Ltd,0040129463,"21,589.45",Corporate Services-Office Estate,Responsive Repairs M & E
11,DCMS,Historic England,10/03/2020,Capita Secure Information Solutions Ltd,0040128925,"45,339.41",Corporate Services-Finance & Procurement Dept,Software Maintenance
12,DCMS,Historic England,10/03/2020,Capita Secure Information Solutions Ltd,0040128925,"24,787.50",Corporate Services-Finance & Procurement Dept,Software Maintenance
13,DCMS,Historic England,30/03/2020,CDW UK,0040129573,"41,142.60",Corporate Services-IMT,Equipment <10k
14,DCMS,Historic England,31/03/2020,CDW UK,0040129636,"218,283.30",Corporate Services-IMT,WIP Asset Purch Over 10k
15,DCMS,Historic England,31/03/2020,CDW UK,0040129637,"225,835.80",Corporate Services-IMT,WIP Asset Purch Over 10k
16,DCMS,Historic England,16/03/2020,Central Scanning Ltd,0040129009,"29,398.80",Policy & Evidence-National Specialist Services,Plant & Equipment > 10k
17,DCMS,Historic England,23/03/2020,CET Viscount Coke Fund,0082005628,"70,000.00",Regions Group-East - RD,Grants Historic Buildings
18,DCMS,Historic England,30/03/2020,CET Viscount Coke Fund,0082005634,"30,000.00",Regions Group-East - RD,Grants Historic Buildings
19,DCMS,Historic England,06/03/2020,Commissum,0040128859,"21,600.00",Corporate Services-IMT,WIP Computer Consultancy
20,DCMS,Historic England,06/03/2020,Commissum,0040128859,"8,904.00",Corporate Services-IMT,WIP Computer Consultancy
21,DCMS,Historic England,19/03/2020,Coventry City Council,0090515960,"42,701.00",Regions Group-Midlands - RD,Grants Area
22,DCMS,Historic England,23/03/2020,Creeksea Place Events Ltd,0082005631,"130,000.00",Regions Group-East - RD,Grants Historic Buildings
23,DCMS,Historic England,23/03/2020,Croft Building and Conservation Ltd,0040129266,"255,326.40",Shrewsbury Flax Mill Maltings-Shrewsbury Flax Mill Maltings,Works for Heritage Buildings
24,DCMS,Historic England,23/03/2020,Croft Building and Conservation Ltd,0040129267,"569,622.67",Shrewsbury Flax Mill Maltings-Shrewsbury Flax Mill Maltings,Works for Heritage Buildings
25,DCMS,Historic England,03/03/2020,Daisy Communications Ltd,0040128657,"42,034.86",Corporate Services-IMT,Network Contracts
26,DCMS,Historic England,27/03/2020,Daisy Communications Ltd,0040128964,"40,371.02",Corporate Services-IMT,Network Contracts
27,DCMS,Historic England,27/03/2020,Daisy Communications Ltd,0040128964,74.72,Corporate Services-IMT,Network Contracts
28,DCMS,Historic England,11/03/2020,East Quantoxhead Estate,0082005549,"61,847.00",Regions Group-South West - RD,Grants Historic Buildings
29,DCMS,Historic England,12/03/2020,East Sussex County Council,0081005105,"35,000.00",Business Improvement-Grants,Grants Historic Environment
30,DCMS,Historic England,31/03/2020,EDF  ,0020073830,"29,052.91",Corporate Services-Corporate,Electricity
31,DCMS,Historic England,20/03/2020,Electron-X Ltd,0040129216,"80,451.60",Policy & Evidence-National Specialist Services,Plant & Equipment > 10k
32,DCMS,Historic England,04/03/2020,ESRI (UK) Ltd,0040128754,"252,000.00",Corporate Services-IMT,Software Maintenance
33,DCMS,Historic England,23/03/2020,ETH Zurich,0020073821,"39,200.00",Policy & Evidence-National Specialist Services,Technical Research
34,DCMS,Historic England,05/03/2020,Feilden Clegg Bradley Studios LLP,0040128832,"31,954.80",Shrewsbury Flax Mill Maltings-Shrewsbury Flax Mill Maltings,Fees for Professional Advice
35,DCMS,Historic England,30/03/2020,Feilden Clegg Bradley Studios LLP,0040129498,"31,954.80",Shrewsbury Flax Mill Maltings-Shrewsbury Flax Mill Maltings,Fees for Professional Advice
36,DCMS,Historic England,18/03/2020,First White Cloth Hall (Leeds) Ltd,0082005574,"125,000.00",Regions Group-North East & Yorkshire - RD,Grants Historic Buildings
37,DCMS,Historic England,18/03/2020,Forest of Dean Buildings Preservation,0082005608,"57,709.00",Regions Group-South West - RD,Grants Historic Buildings
38,DCMS,Historic England,18/03/2020,Forterra  Building Products Ltd,0081005119,"45,000.00",Business Improvement-Grants,Grants Historic Environment
39,DCMS,Historic England,18/03/2020,Forterra  Building Products Ltd,0081005120,"70,000.00",Business Improvement-Grants,Grants Historic Environment
40,DCMS,Historic England,23/03/2020,Freeman Historic Properties Ltd,0082005630,"124,800.00",Regions Group-East - RD,Grants Historic Buildings
41,DCMS,Historic England,17/03/2020,Freidman FM Ltd,0040128966,"16,027.74",Corporate Services-Facilities Management,Annual Cyclical Works-Building
42,DCMS,Historic England,17/03/2020,Freidman FM Ltd,0040128966,"16,391.86",Corporate Services-Facilities Management,Annual Cyclical Work M & E
43,DCMS,Historic England,17/03/2020,Freidman FM Ltd,0040128966,"1,449.78",Corporate Services-Facilities Management,Annual Cyclical Work Grounds
44,DCMS,Historic England,17/03/2020,Freidman FM Ltd,0040128966,"9,560.48",Corporate Services-Facilities Management,Office Cleaning
45,DCMS,Historic England,17/03/2020,Freidman FM Ltd,0040128966,"8,798.35",Corporate Services-Facilities Management,Office Security & Cash Collect
46,DCMS,Historic England,31/03/2020,Freidman FM Ltd,0040129093,"39,575.05",Corporate Services-Facilities Management,Responsive Repairs M & E
47,DCMS,Historic England,26/03/2020,Freidman FM Ltd,0040129208,"28,934.40",Corporate Services-Facilities Management,Responsive Repairs M & E
48,DCMS,Historic England,30/03/2020,Freidman FM Ltd,0040129226,"-39,575.05",Corporate Services-Facilities Management,Responsive Repairs M & E
49,DCMS,Historic England,18/03/2020,General Cemetery Company,0082005600,"132,459.00",Regions Group-London & South East - RD,Grants Historic Buildings
50,DCMS,Historic England,18/03/2020,General Cemetery Company,0082005604,"42,460.00",Regions Group-London & South East - RD,Grants Historic Buildings
51,DCMS,Historic England,06/03/2020,GTT-EMA Ltd,0040128425,"127,373.45",Corporate Services-IMT,Network Contracts
52,DCMS,Historic England,06/03/2020,GTT-EMA Ltd,0040128425,"1,316.84",Corporate Services-IMT,Network Contracts
53,DCMS,Historic England,16/03/2020,GTT-EMA Ltd,0040128874,"2,275.67",Corporate Services-IMT,Network Contracts
54,DCMS,Historic England,16/03/2020,GTT-EMA Ltd,0040128874,"78,543.30",Corporate Services-IMT,Network Contracts
55,DCMS,Historic England,30/03/2020,Hadleigh Technical Support Ltd,0040129324,"30,000.00",Corporate Services-Facilities Management,Equipment <10k
56,DCMS,Historic England,06/03/2020,Harlow Property Management Ltd,0040128906,"54,750.00",Corporate Services-Office Estate,Rent - Operating Leases
57,DCMS,Historic England,12/03/2020,Historic Chapels Trust,0081005113,"50,654.00",Business Improvement-Grants,Grants Capacity Building Grants
58,DCMS,Historic England,11/03/2020,Historic Coventry Trust,0090515907,"812,047.63",Regions Group-High Str (HAZ) - Regions,Grants Area
59,DCMS,Historic England,12/03/2020,Historic Coventry Trust,0090515913,"375,000.00",Regions Group-High Str (HAZ) - Regions,Grants Area
60,DCMS,Historic England,12/03/2020,Historic Coventry Trust,0090515918,"12,500.00",Regions Group-Midlands - RD,Grants Capacity Building Grants
61,DCMS,Historic England,12/03/2020,Historic Coventry Trust,0090515918,"18,068.24",Regions Group-Midlands - RD,Grants Capacity Building Grants
62,DCMS,Historic England,12/03/2020,Institute of Customer Services,0040129110,"36,000.00",Policy & Evidence-Analytics,Corporate Subscriptions
63,DCMS,Historic England,10/03/2020,J & J Negus Ltd,0040128694,"48,614.40",Public Engagement-Archives & Digital Asset,Plant & Equipment > 10k
64,DCMS,Historic England,10/03/2020,J & J Negus Ltd,0040128694,"4,200.00",Public Engagement-Archives & Digital Asset,Licences
65,DCMS,Historic England,26/03/2020,Landmark Chambers,0040129265,"53,036.16",Governance & Legal-Governance & Legal Department,Legal Fees
66,DCMS,Historic England,26/03/2020,Lincolnshire County Council,0081005144,"37,000.00",Business Improvement-Grants,Grants Historic Environment
67,DCMS,Historic England,16/03/2020,Little Fish (UK) Ltd,0040128894,"69,471.60",Corporate Services-IMT,End User Contracts
68,DCMS,Historic England,16/03/2020,Little Fish (UK) Ltd,0040128895,"42,859.20",Corporate Services-IMT,Service Management Contracts
69,DCMS,Historic England,11/03/2020,London Borough of Bromley,0082005555,"25,763.00",Regions Group-London & South East - RD,Grants Historic Buildings
70,DCMS,Historic England,18/03/2020,London Borough of Ealing Council,0082005587,"126,536.00",Regions Group-London & South East - RD,Grants Historic Buildings
71,DCMS,Historic England,18/03/2020,London Borough of Ealing Council,0082005602,"60,105.00",Regions Group-London & South East - RD,Grants Historic Buildings
72,DCMS,Historic England,18/03/2020,London Borough of Hounslow,0082005591,"133,570.00",Regions Group-London & South East - RD,Grants Historic Buildings
73,DCMS,Historic England,11/03/2020,London Borough of Newham,0082005557,"43,772.00",Regions Group-London & South East - RD,Grants Historic Buildings
74,DCMS,Historic England,18/03/2020,London Borough of Newham,0082005572,"28,462.00",Regions Group-London & South East - RD,Grants Historic Buildings
75,DCMS,Historic England,11/03/2020,London Borough of Sutton,0090515911,"30,000.00",Regions Group-London & South East - RD,Grants Area
76,DCMS,Historic England,18/03/2020,London Borough of Sutton,0090515912,"27,170.00",Regions Group-London & South East - RD,Grants Area
77,DCMS,Historic England,09/03/2020,London Diocesan Fund,0082005546,"231,681.00",Regions Group-London & South East - RD,Grants Historic Buildings
78,DCMS,Historic England,18/03/2020,Luton Cultural Services Trust HQ,0082005577,"72,800.00",Regions Group-East - RD,Grants Historic Buildings
79,DCMS,Historic England,04/03/2020,Manchester City Council,0082005543,"70,258.00",Regions Group-North West - RD,Grants Historic Buildings
80,DCMS,Historic England,19/03/2020,Microsoft Ltd,0040128899,"52,416.00",Corporate Services-IMT,Software Maintenance
81,DCMS,Historic England,23/03/2020,Microsoft Ltd,0040128901,"192,576.92",Corporate Services-IMT,Software Maintenance
82,DCMS,Historic England,30/03/2020,National Audit Office,0040129464,"28,000.00",Corporate Services-Finance & Procurement Dept,Audit Fee
83,DCMS,Historic England,11/03/2020,National Trust SW Wiltshire Hub,0082005550,"35,820.00",Regions Group-South West - RD,Grants Historic Buildings
84,DCMS,Historic England,18/03/2020,Norfolk County Council,0090515941,"35,296.00",Regions Group-East - RD,Grants Other Grants
85,DCMS,Historic England,19/03/2020,North Kesteven District Council,0090515950,"72,398.00",Regions Group-Midlands - RD,Grants Area
86,DCMS,Historic England,06/03/2020,North Somerset Council,0090515895,"62,250.00",Regions Group-South West - RD,Grants Area
87,DCMS,Historic England,20/03/2020,Opal Elevators Ltd,0040129325,"27,508.80",Corporate Services-Office Estate,Planned Maintenance
88,DCMS,Historic England,19/03/2020,Oracle Corporation UK Ltd,0040129117,"43,931.85",Corporate Services-IMT,Software Maintenance
89,DCMS,Historic England,11/03/2020,Portsmouth Naval Base Property Trust,0082005551,"38,000.00",Regions Group-London & South East - RD,Grants Historic Buildings
90,DCMS,Historic England,23/03/2020,Portsmouth Roman Catholic Diocesan,0082005624,"77,125.00",Regions Group-London & South East - RD,Grants Historic Buildings
91,DCMS,Historic England,23/03/2020,Railway Paths Ltd,0082005623,"75,190.00",Regions Group-Midlands - RD,Grants Historic Buildings
92,DCMS,Historic England,11/03/2020,Ratcliffes,0040129045,"283,500.00",Corporate Services-Office Estate,Rent - Operating Leases
93,DCMS,Historic England,24/03/2020,Ratcliffes,0040129335,"192,000.00",Corporate Services-Office Estate,Rent - Operating Leases
94,DCMS,Historic England,03/03/2020,S Taylor & Son Ltd,0040128781,"32,453.46",Corporate Services-Office Estate,Responsive Repairs M & E
95,DCMS,Historic England,12/03/2020,SoftwareOne UK Ltd,0040128875,"52,777.18",Corporate Services-IMT,Hosting
96,DCMS,Historic England,19/03/2020,SoftwareOne UK Ltd,0040129199,"39,437.75",Corporate Services-IMT,Software Maintenance
97,DCMS,Historic England,20/03/2020,SoftwareOne UK Ltd,0040129294,"50,651.35",Corporate Services-IMT,Hosting
98,DCMS,Historic England,10/03/2020,South Kesteven District Council,0090515901,"28,716.00",Regions Group-Midlands - RD,Grants Area
99,DCMS,Historic England,06/03/2020,SSG Advisory Ltd,0040128794,"25,200.00",Corporate Services-IMT,Computer Consultancy
100,DCMS,Historic England,27/03/2020,SSG Advisory Ltd,0040129399,"63,000.00",Corporate Services-IMT,Computer Consultancy
101,DCMS,Historic England,02/03/2020,Sunderland City Council,0090515878,"49,144.00",Regions Group-North East & Yorkshire - RD,Grants Area
102,DCMS,Historic England,02/03/2020,Sunderland City Council,0090515878,"150,000.00",Regions Group-North East & Yorkshire - RD,Grants Area
103,DCMS,Historic England,02/03/2020,Swindon Borough Council,0090515881,"27,740.00",Regions Group-South West - RD,Grants Capacity Building Grants
104,DCMS,Historic England,31/03/2020,Ten 10 Solutions Ltd,0040129681,"-5,508.00",Corporate Services-IMT,Computer Consultancy
105,DCMS,Historic England,31/03/2020,Ten 10 Solutions Ltd,0040129681,"-6,804.00",Corporate Services-IMT,Computer Consultancy
106,DCMS,Historic England,18/03/2020,Tendring District Council,0082005607,"59,000.00",Regions Group-East - RD,Grants Historic Buildings
107,DCMS,Historic England,25/03/2020,Thanet District Council,0090515969,"13,693.97",Regions Group-London & South East - RD,Grants Capacity Building Grants
108,DCMS,Historic England,25/03/2020,Thanet District Council,0090515969,"32,647.03",Regions Group-London & South East - RD,Grants Capacity Building Grants
109,DCMS,Historic England,05/03/2020,The Architectural Heritage Fund,0081005089,"63,500.00",Business Improvement-Grants,Grants Capacity Building Grants
110,DCMS,Historic England,26/03/2020,The Architectural Heritage Fund,0081005177,"695,463.00",Business Improvement-High Str (HAZ) - Busin Improv,Grants Historic Buildings
111,DCMS,Historic England,26/03/2020,The Heritage Alliance,0081005178,"35,870.00",Business Improvement-Grants,Grants Capacity Building Grants
112,DCMS,Historic England,11/03/2020,The Historic England Foundation,0020073812,"27,000.00",Business Improvement-Partnerships & Philanthropy,Other Grants
113,DCMS,Historic England,18/03/2020,The National Trust,0082005579,"25,000.00",Regions Group-South West - RD,Grants Historic Buildings
114,DCMS,Historic England,30/03/2020,The National Trust,0082005637,"33,000.00",Regions Group-South West - RD,Grants Historic Buildings
115,DCMS,Historic England,05/03/2020,The Princes Foundation,0081005099,"25,000.00",Business Improvement-Grants,Grants Historic Environment
116,DCMS,Historic England,18/03/2020,Thurrock Council,0082005559,"31,395.00",Regions Group-East - RD,Grants Historic Buildings
117,DCMS,Historic England,18/03/2020,Torr Vale Mills Ltd,0082005569,"148,998.00",Regions Group-Midlands - RD,Grants Historic Buildings
118,DCMS,Historic England,26/03/2020,University College London,0081005157,"55,000.00",Business Improvement-Grants,Grants Historic Environment
119,DCMS,Historic England,23/03/2020,University of Gronignen,0020073822,"32,240.00",Policy & Evidence-National Specialist Services,Technical Research
120,DCMS,Historic England,26/03/2020,University of Wolverhampton,0081005181,"50,000.00",Business Improvement-Grants,Grants Historic Environment
121,DCMS,Historic England,17/03/2020,University of York,0040128994,"40,956.83",Business Improvement-Grants,Hist Environ Prog Projects Gra
122,DCMS,Historic England,16/03/2020,University of York,0040129143,"25,000.00",Business Improvement-Grants,Hist Environ Prog Projects Gra
123,DCMS,Historic England,16/03/2020,University of York,0040129144,"25,000.00",Business Improvement-Grants,Hist Environ Prog Projects Gra
124,DCMS,Historic England,18/03/2020,Urban Splash (Melville) Ltd,0082005571,"73,713.00",Regions Group-South West - RD,Grants Historic Buildings
125,DCMS,Historic England,18/03/2020,Urban Splash (Park Hill) Ltd,0082005576,"75,000.00",Regions Group-North East & Yorkshire - RD,Grants Historic Buildings
126,DCMS,Historic England,04/03/2020,Urban Splash Yorkshire Ltd,0082005539,"75,000.00",Regions Group-North East & Yorkshire - RD,Grants Historic Buildings
127,DCMS,Historic England,05/03/2020,Vodafone Corporate Ltd,0040128745,"50,666.31",Corporate Services-IMT,Telephone and Communications
128,DCMS,Historic England,05/03/2020,Vodafone Corporate Ltd,0040128745,98.60,Corporate Services-IMT,Telephone and Communications
129,DCMS,Historic England,26/03/2020,Vodafone Corporate Ltd,0040128852,"33,771.26",Corporate Services-IMT,Telephone and Communications
130,DCMS,Historic England,26/03/2020,Vodafone Corporate Ltd,0040128852,112.59,Corporate Services-IMT,Telephone and Communications
131,DCMS,Historic England,26/03/2020,Vodafone Corporate Ltd,0040128852,98.60,Corporate Services-IMT,Telephone and Communications
132,DCMS,Historic England,27/03/2020,Vodafone Corporate Ltd,0040129297,"33,478.94",Corporate Services-IMT,Telephone and Communications
133,DCMS,Historic England,27/03/2020,Vodafone Corporate Ltd,0040129297,656.40,Corporate Services-IMT,Telephone and Communications
134,DCMS,Historic England,16/03/2020,"W H Smith, PR Ensor SAP & Halston Dev.",0040129193,"60,600.00",Corporate Services-Office Estate,Rent - Operating Leases
135,DCMS,Historic England,02/03/2020,Wentworth Woodhouse Preservation Trust,0082005536,"224,000.00",Regions Group-North East & Yorkshire - RD,Grants Historic Buildings
136,DCMS,Historic England,18/03/2020,Wentworth Woodhouse Preservation Trust,0082005582,"98,528.00",Regions Group-North East & Yorkshire - RD,Grants Historic Buildings
137,DCMS,Historic England,27/03/2020,Wessex Archaeology Ltd,0040129481,"55,000.00",Business Improvement-Grants,Maritime Commissions
138,DCMS,Historic England,31/03/2020,Wiltshire Council,0090515979,"36,792.00",Regions Group-South West - RD,Grants Capacity Building Grants
139,DCMS,Historic England,18/03/2020,Worcester Cathedral,0082005612,"38,388.00",Regions Group-Midlands - RD,Grants Historic Buildings
